fUST/lending_fUST_20240722
["ID","MTS","AMOUNT","RATE_DAILY","PERIOD"]
[332892326,1721643119101,150.112233,0.00014,4]
[332892333,1721643526227,5000.0,0.00024,60]
[332892335,1721643721394,150.112233,0.00014,5]
[332892363,1721644152160,2000.0,0.00025,120]
[332892447,1721644240182,-154.81330348,9.999e-05,2]
[332892448,1721644240192,-185.44243178,9.999e-05,2]
[332892449,1721644240201,-180.15335182,9.999e-05,2]
[332892450,1721644240211,-459.13593927,9.999e-05,2]
[332892451,1721644240221,-465.64988446,9.999e-05,2]
[332892452,1721644240230,-287.38821308,0.0001,2]
[332892453,1721644240239,-154.80649189,0.0001,2]
[332892454,1721644240249,-154.80649189,0.00012119,2]
[332892455,1721644240259,-1441.8951927,0.00012604,2]
[332892456,1721644240268,-948.03178351,0.0001316,2]
[332892457,1721644240277,-367.39222983,0.00013444,2]
[332892458,1721644240287,-236.1641156,0.00013561,2]
[332892459,1721644240296,-1930.79771966,0.00013597,2]
[332892460,1721644240306,-1609.25340569,0.00013598,2]
[332892461,1721644240318,-1932.70529052,0.00013598,2]
[332892462,1721644240327,-5304.84073988,0.00013609,2]
[332892463,1721644240336,-241.9814,0.0001363,2]
[332892464,1721644240346,-12413.74156305,0.00013688,2]
[332892468,1721644243431,-13173.722808,0.00013688,2]
[332892483,1721644328554,150.112233,0.00014,5]
[332892496,1721644590406,987.0,0.000225,30]
[332892528,1721645438336,-567.94371923,9.999e-05,2]
[332892529,1721645438348,-459.13593927,9.999e-05,2]
[332892530,1721645438358,-240.51585871,9.999e-05,2]
[332892531,1721645438368,-346.24214689,9.999e-05,2]
[332892532,1721645438379,-600.13398143,9.999e-05,2]
[332892533,1721645438390,-413.45473308,9.999e-05,2]
[332892534,1721645438400,-287.42676554,0.0001,2]
[332892535,1721645438410,-217.45,0.00010959,2]
[332892536,1721645438421,-250.0,0.00012397,2]
[332892537,1721645438432,-250.0,0.00012431,2]
[332892538,1721645438442,-250.0,0.00012465,2]
[332892539,1721645438452,-250.0,0.00012499,2]
[332892540,1721645438465,-250.0,0.00012533,2]
[332892541,1721645438475,-250.0,0.00012567,2]
[332892542,1721645438486,-250.0,0.00012601,2]
[332892543,1721645438496,-250.0,0.00012635,2]
[332892544,1721645438506,-250.0,0.00012669,2]
[332892545,1721645438516,-250.0,0.00012703,2]
[332892546,1721645438526,-250.0,0.00012737,2]
[332892547,1721645438537,-250.0,0.00012771,2]
[332892548,1721645438547,-250.0,0.00012805,2]
[332892549,1721645438557,-250.0,0.00012839,2]
[332892550,1721645438567,-250.0,0.00012873,2]
[332892551,1721645438579,-250.0,0.00012907,2]
[332892552,1721645438591,-250.0,0.00012941,2]
[332892553,1721645438603,-250.0,0.00012975,2]
[332892554,1721645438612,-250.0,0.00013009,2]
[332892555,1721645438624,-306.0,0.00013041,2]
[332892556,1721645438634,-250.0,0.00013043,2]
[332892557,1721645438646,-153.0,0.000131,2]
[332892558,1721645438656,-293.8749366,0.000131,2]
[332892559,1721645438666,-306.0,0.000131,2]
[332892560,1721645438676,-153.0,0.000131,2]
[332892561,1721645438686,-293.8425286,0.000131,2]
[332892562,1721645438695,-153.0,0.000131,2]
[332892563,1721645438705,-466.8761925,0.000131,2]
[332892564,1721645438715,-153.0,0.000131,2]
[332892565,1721645438724,-206.6425332,0.000131,2]
[332892566,1721645438735,-153.0,0.000131,2]
[332892567,1721645438745,-153.0,0.000131,2]
[332892568,1721645438755,-153.0,0.000131,2]
[332892569,1721645438766,-306.0,0.000131,2]
[332892570,1721645438776,-367.39222983,0.00013182,2]
[332892571,1721645438786,-153.0,0.00013278,2]
[332892572,1721645438796,-5304.84073988,0.00013329,2]
[332892573,1721645438806,-306.0,0.00013352,2]
[332892574,1721645438816,-1803.93035368,0.000134,2]
[332892575,1721645438826,-208.6912313,0.00013425,2]
[332892576,1721645438837,-153.0,0.00013425,2]
[332892577,1721645438848,-293.8749366,0.00013425,2]
[332892578,1721645438858,-199.8387946,0.00013425,2]
[332892579,1721645438868,-153.0,0.00013425,2]
[332892580,1721645438878,-153.0,0.00013425,2]
[332892581,1721645438890,-206.6425332,0.00013425,2]
[332892582,1721645438901,-153.0,0.00013425,2]
[332892583,1721645438911,-293.8749366,0.00013425,2]
[332892584,1721645438921,-153.0,0.00013425,2]
[332892585,1721645438931,-306.8586341,0.00013425,2]
[332892586,1721645438941,-293.8749366,0.00013425,2]
[332892587,1721645438950,-293.8749366,0.00013425,2]
[332892588,1721645438961,-153.0,0.00013425,2]
[332892589,1721645438973,-153.0,0.00013425,2]
[332892590,1721645438983,-153.0,0.00013425,2]
[332892591,1721645438992,-201756.2625,0.0001349,2]
[332892592,1721645439003,-139652.0908333,0.000135,2]
[332892593,1721645439014,-236.1641156,0.00013561,2]
[332892594,1721645439024,-887.39339376,0.00013588,2]
[332892595,1721645439034,-1932.70529052,0.00013598,2]
[332892596,1721645439044,-2000.0,0.000136,2]
[332892597,1721645439055,-155561.38836448,0.000136,2]
[332892677,1721645443456,-312.3204449,0.00013425,2]
[332892679,1721645443466,-3764.20669265,0.000136,2]
[332892773,1721645702988,1000.0,0.00015,15]
[332892774,1721645719453,1000.0,0.00016,16]
[332892775,1721645730740,1000.0,0.00018,18]
[332892777,1721646136417,150.112233,0.00014,5]
[332892778,1721646507342,608.78562231,0.00025,120]
[332892787,1721646632532,-459.13593927,9.999e-05,2]
[332892788,1721646632542,-154.80649189,0.0001,2]
[332892789,1721646632553,-168.361845,0.00012644,2]
[332892790,1721646632564,-948.03178351,0.00013127,2]
[332892791,1721646632574,-1532.77759394,0.00013196,2]
[332892792,1721646632586,-3772.06314594,0.00013196,2]
[332892793,1721646632598,-367.39222983,0.00013325,2]
[332892795,1721646632610,-300.0,0.00013497,2]
[332892797,1721646632620,-11801.50260279,0.00013498,2]
[332892799,1721646632631,-1739.43476145,0.00013598,2]
[332892801,1721646632642,-71184.90281242,0.000136,2]
[332892979,1721646751893,10000.0,0.000225,30]
[332893031,1721647832816,-154.79103211,9.999e-05,2]
[332893032,1721647832827,-154.79103211,0.0001,2]
[332893033,1721647832837,-226.57284131,0.000131,2]
[332893034,1721647832848,-150.0,0.000132,2]
[332893035,1721647832859,-367.39222983,0.00013209,2]
[332893036,1721647832869,-18.03205716,0.000133,2]
[332893090,1721647838705,-131.96794284,0.000133,2]
[332893091,1721647838715,-300.0,0.00013399,2]
[332893092,1721647838725,-150.0,0.000134,2]
[332893093,1721647838735,-293.8749366,0.000134,2]
[332893094,1721647838746,-293.8749366,0.000134,2]
[332893095,1721647838756,-206.6425332,0.000134,2]
[332893096,1721647838766,-206.6425332,0.000134,2]
[332893097,1721647838777,-150.0,0.000135,2]
[332893098,1721647838787,-293.8749366,0.000135,2]
[332893099,1721647838798,-293.8749366,0.000135,2]
[332893100,1721647838809,-153.0,0.000135,2]
[332893101,1721647838818,-153.0,0.000135,2]
[332893102,1721647838830,-292.45665722,0.000135,2]
[332893103,1721647838842,-1.41827938,0.000135,2]
[332893104,1721647838854,-153.0,0.000135,2]
[332893106,1721647838864,-153.0,0.000135,2]
[332893107,1721647838874,-293.8749366,0.000135,2]
[332893109,1721647838883,-206.6425332,0.000135,2]
[332893111,1721647838894,-153.0,0.000135,2]
[332893113,1721647838905,-293.8749366,0.000135,2]
[332893115,1721647838916,-293.8749366,0.000135,2]
[332893117,1721647838926,-206.6425332,0.000135,2]
[332893119,1721647838936,-153.0,0.000135,2]
[332893121,1721647838945,-153.0,0.000135,2]
[332893123,1721647838954,-206.6425332,0.000135,2]
[332893125,1721647838964,-153.0,0.000135,2]
[332893127,1721647838974,-206.6425332,0.000135,2]
[332893129,1721647838983,-153.0,0.000135,2]
[332893131,1721647838992,-739.5116279,0.000135,2]
[332893133,1721647839002,-1565.49128535,0.00013598,2]
[332893135,1721647839011,-6885.65068235,0.000136,2]
[332893250,1721647840844,-5304.84073988,0.00013331,2]
[332893251,1721647840856,-34230.73297563,0.000136,2]
[332893375,1721649031771,-600.0568444,9.999e-05,2]
[332893377,1721649031781,-533.21232689,9.999e-05,2]
[332893378,1721649031791,-265.31760698,9.999e-05,2]
[332893379,1721649031801,-170.81348316,0.0001,2]
[332893380,1721649031810,-331.37,0.00010959,2]
[332893382,1721649031820,-154.79103211,0.00012119,2]
[332893383,1721649031829,-636.40158917,0.00013094,2]
[332893385,1721649031839,-367.39222983,0.00013171,2]
[332893386,1721649031849,-300.0,0.00013252,2]
[332893387,1721649031858,-5304.84073988,0.00013253,2]
[332893388,1721649031869,-151.10300864,0.00013387,2]
[332893389,1721649031879,-1736.88134228,0.000135,2]
[332893390,1721649031888,-180.3981953,0.00013551,2]
[332893391,1721649031898,-3623.85850764,0.00013598,2]
[332893392,1721649031908,-1507.38464673,0.00013598,2]
[332893393,1721649031918,-2742.13317477,0.000136,2]
[332893394,1721649031930,-647.08484553,0.000136,2]
[332893420,1721649039851,-1045.0111585,0.000136,2]
[332893422,1721649039904,-140088.8789035,0.000136,2]
[332893423,1721649039916,-14035.39384017,0.000136,2]
[332893424,1721649039926,-2106.53631299,0.000136,2]
[332893425,1721649039935,-154.79103211,0.000136,2]
[332893426,1721649039945,-156.43153458,0.000136,2]
[332893427,1721649039955,-3781.68915549,0.000136,2]
[332893428,1721649039965,-173.99195919,0.000136,2]
[332893429,1721649039975,-164.20935766,0.000136,2]
[332893430,1721649039984,-218.11782057,0.000136,2]
[332893431,1721649039994,-161.10525097,0.000136,2]
[332893432,1721649040003,-1625.30319851,0.000136,2]
[332893433,1721649040014,-4707.50365433,0.000136,2]
[332893434,1721649040024,-5174.99932116,0.000136,2]
[332893527,1721649699072,10000.0,0.000225,30]
[332893528,1721649707138,10000.0,0.00025,120]
[332893529,1721649715231,10000.0,0.00024,60]
[332893530,1721649726628,10000.0,0.000225,30]
[332893531,1721649735650,10000.0,0.00025,120]
[332893532,1721649756835,10000.0,0.000225,30]
[332893533,1721649772057,420.0,0.00025,120]
[332893570,1721650232017,-542.48310742,9.999e-05,2]
[332893571,1721650232027,-154.86147446,9.999e-05,2]
[332893572,1721650232036,-154.76012181,9.999e-05,2]
[332893573,1721650232045,-5304.84073988,0.00013286,2]
[332893575,1721650232054,-367.39222983,0.00013314,2]
[332893577,1721650232064,-200.0,0.00013425,2]
[332893579,1721650232073,-241.9814,0.00013532,2]
[332893580,1721650232083,-1445.24442294,0.00013598,2]
[332893582,1721650232092,-1930.79772065,0.00013628,2]
[332893583,1721650232102,-3396.89490653,0.00013672,2]
[332893584,1721650232111,-11314.7901487,0.00013678,2]
[332893585,1721650232123,-1771.8042138,0.00013678,2]
[332893656,1721650240235,-380703.0730375,0.00013678,2]
[332893658,1721650240244,-5000.0,0.00013697,2]
[332893659,1721650240253,-5000.0,0.00013697,2]
[332893661,1721650240262,-5000.0,0.00013697,2]
[332893663,1721650240272,-1510.28073615,0.00013697,2]
[332893665,1721650240281,-43.834591,0.00013698,2]
[332893668,1721650240290,-500.0,0.00013698,2]
[332893670,1721650240300,-500.0,0.00013698,2]
[332893672,1721650240309,-500.0,0.00013698,2]
[332893674,1721650240318,-500.0,0.00013698,2]
[332893676,1721650240327,-500.0,0.00013698,2]
[332893678,1721650240336,-500.0,0.00013698,2]
[332893680,1721650240346,-500.0,0.00013698,2]
[332893682,1721650240355,-631.24,0.00013698,2]
[332893684,1721650240364,-163.32,0.00013698,2]
[332893686,1721650240373,-552.12,0.00013698,2]
[332893688,1721650240382,-543.68,0.00013698,2]
[332893690,1721650240392,-500.0,0.00013698,2]
[332893692,1721650240401,-502.31904119,0.00013698,2]
[332893694,1721650240411,-500.0,0.00013698,2]
[332893696,1721650240420,-500.0,0.00013698,2]
[332893698,1721650240429,-505.09817227,0.00013698,2]
[332893700,1721650240439,-1787.73,0.00013698,2]
[332893702,1721650240448,-404.03518266,0.00013698,2]
[332893704,1721650240457,-1787.73,0.00013698,2]
[332893706,1721650240466,-1787.73,0.00013698,2]
[332893708,1721650240476,-1787.73,0.00013698,2]
[332893710,1721650240485,-1787.73,0.00013698,2]
[332893712,1721650240494,-1787.73,0.00013698,2]
[332893714,1721650240503,-1787.73,0.00013698,2]
[332893716,1721650240512,-1787.73,0.00013698,2]
[332893718,1721650240522,-1787.73,0.00013698,2]
[332893720,1721650240533,-1787.73,0.00013698,2]
[332893722,1721650240543,-1787.73,0.00013698,2]
[332893724,1721650240552,-1787.73,0.00013698,2]
[332893726,1721650240562,-1787.73,0.00013698,2]
[332893728,1721650240571,-1787.73,0.00013698,2]
[332893730,1721650240579,-1787.73,0.00013698,2]
[332893732,1721650240588,-1787.73,0.00013698,2]
[332893734,1721650240597,-1787.73,0.00013698,2]
[332893736,1721650240606,-1787.73,0.00013698,2]
[332893738,1721650240617,-1787.73,0.00013698,2]
[332893740,1721650240626,-1787.73,0.00013698,2]
[332893742,1721650240635,-1787.73,0.00013698,2]
[332893744,1721650240647,-1787.73,0.00013698,2]
[332893746,1721650240656,-1787.73,0.00013698,2]
[332893748,1721650240667,-1787.80347066,0.00013698,2]
[332893749,1721650240676,-500.0,0.00013698,2]
[332893751,1721650240685,-276.21,0.00013698,2]
[332893753,1721650240694,-500.0,0.00013698,2]
[332893755,1721650240703,-449.08211785,0.00013698,2]
[332893757,1721650240712,-500.0,0.00013698,2]
[332893759,1721650240721,-500.0,0.00013698,2]
[332893761,1721650240730,-500.0,0.00013698,2]
[332893763,1721650240740,-503.72147418,0.00013698,2]
[332893765,1721650240749,-500.0,0.00013698,2]
[332893767,1721650240759,-500.0,0.00013698,2]
[332893769,1721650240769,-500.0,0.00013698,2]
[332893770,1721650240778,-503.91386511,0.00013698,2]
[332893771,1721650240788,-500.0,0.00013698,2]
[332893772,1721650240796,-500.0,0.00013698,2]
[332893774,1721650240805,-500.0,0.00013698,2]
[332893776,1721650240815,-573.25,0.00013698,2]
[332893778,1721650240825,-500.46070068,0.00013698,2]
[332893780,1721650240835,-594.07160015,0.00013698,2]
[332893782,1721650240844,-500.0,0.00013698,2]
[332893784,1721650240854,-512.01137092,0.00013698,2]
[332893786,1721650240864,-500.0,0.00013698,2]
[332893788,1721650240874,-500.0,0.00013698,2]
[332893790,1721650240883,-124.04089095,0.00013698,2]
[332893843,1721650246470,-375.95910905,0.00013698,2]
[332893844,1721650246479,-500.0,0.00013698,2]
[332893845,1721650246489,-501.41027796,0.00013698,2]
[332893846,1721650246498,-334.8116071,0.00013698,2]
[332893847,1721650246507,-502.21851834,0.00013698,2]
[332893848,1721650246516,-500.0,0.00013698,2]
[332893849,1721650246525,-435.78710913,0.00013698,2]
[332893850,1721650246536,-500.0,0.00013698,2]
[332893851,1721650246546,-500.0,0.00013698,2]
[332893852,1721650246555,-500.0,0.00013698,2]
[332893853,1721650246564,-500.0,0.00013698,2]
[332893854,1721650246575,-500.0,0.00013698,2]
[332893855,1721650246586,-500.0,0.00013698,2]
[332893856,1721650246598,-500.0,0.00013698,2]
[332893857,1721650246607,-500.0,0.00013698,2]
[332893858,1721650246619,-500.0,0.00013698,2]
[332893859,1721650246630,-500.0,0.00013698,2]
[332893860,1721650246640,-542.70981901,0.00013698,2]
[332893861,1721650246653,-621.66,0.00013698,2]
[332893862,1721650246665,-506.11841399,0.00013698,2]
[332893863,1721650246675,-500.0,0.00013698,2]
[332893864,1721650246684,-500.0,0.00013698,2]
[332893865,1721650246693,-501.67606791,0.00013698,2]
[332893866,1721650246703,-504.41433953,0.00013698,2]
[332893867,1721650246712,-254.12370154,0.00013698,2]
[332893868,1721650246721,-539.45460044,0.00013698,2]
[332893869,1721650246733,-342.83693111,0.00013698,2]
[332893870,1721650246743,-500.0,0.00013698,2]
[332893871,1721650246753,-500.0,0.00013698,2]
[332893872,1721650246763,-500.0,0.00013698,2]
[332893873,1721650246776,-500.0,0.00013698,2]
[332893874,1721650246785,-101.77262882,0.00013698,2]
[332894083,1721651440233,-154.77969924,9.999e-05,2]
[332894084,1721651440244,-544.43988175,9.999e-05,2]
[332894085,1721651440253,-247.46845289,9.999e-05,2]
[332894086,1721651440263,-300.0,0.00012631,2]
[332894087,1721651440273,-9398.0777534,0.00012632,2]
[332894088,1721651440283,-620.82007946,0.00013062,2]
[332894089,1721651440293,-200.0,0.00013425,2]
[332894090,1721651440302,-5304.84073988,0.00013505,2]
[332894091,1721651440312,-1741.97653799,0.00013597,2]
[332894092,1721651440321,-367.39222983,0.00013597,2]
[332894093,1721651440332,-2174.3151046,0.00013598,2]
[332894094,1721651440341,-1300.71998061,0.00013598,2]
[332894095,1721651440350,-440737.04385102,0.00013688,2]
[332894096,1721651440372,-1318.84503557,0.00013688,2]
[332894368,1721651565429,5000.0,0.00025,120]
[332894369,1721651789689,5000.0,0.00025,120]
[332894370,1721651906377,5000.0,0.00025,120]
[332894408,1721652632361,-300.0,9.998e-05,2]
[332894410,1721652632370,-350.50000001,9.999e-05,2]
[332894413,1721652632382,-108.63593926,9.999e-05,2]
[332894415,1721652632392,-154.76012181,9.999e-05,2]
[332894417,1721652632402,-154.76012181,9.999e-05,2]
[332894419,1721652632411,-66.67464694,9.999e-05,2]
[332894421,1721652632422,-88.86793633,9.999e-05,2]
[332894423,1721652632432,-533.21232689,9.999e-05,2]
[332894425,1721652632441,-188.02900327,9.999e-05,2]
[332894427,1721652632450,-189.89073351,9.999e-05,2]
[332894511,1721652638753,-617.93770975,9.999e-05,2]
[332894512,1721652638763,-413.45473308,9.999e-05,2]
[332894513,1721652638774,-155.00267609,9.999e-05,2]
[332894514,1721652638785,-154.79103211,9.999e-05,2]
[332894515,1721652638795,-154.79798758,9.999e-05,2]
[332894516,1721652638803,-462.64647124,9.999e-05,2]
[332894517,1721652638813,-208.54118651,9.999e-05,2]
[332894518,1721652638823,-941.58882029,9.999e-05,2]
[332894519,1721652638835,-154.79103211,9.999e-05,2]
[332894520,1721652638845,-290.33466492,9.999e-05,2]
[332894521,1721652638855,-229.13707776,9.999e-05,2]
[332894523,1721652638866,-500.72751431,0.0001,2]
[332894524,1721652638878,-166.6666733,0.00012447,2]
[332894525,1721652638888,-250.0,0.00012456,2]
[332894526,1721652638898,-151.00173499,0.00013188,2]
[332894527,1721652638907,-5304.84073988,0.00013189,2]
[332894528,1721652638917,-367.39222983,0.00013253,2]
[332894529,1721652638934,-153.0,0.000133,2]
[332894530,1721652638949,-306.0,0.000133,2]
[332894531,1721652638959,-306.0,0.000133,2]
[332894532,1721652638969,-206.6425332,0.000134,2]
[332894533,1721652638979,-587.513356,0.000134,2]
[332894534,1721652638990,-153.0,0.000134,2]
[332894535,1721652639000,-153.0,0.000134,2]
[332894536,1721652639010,-153.0,0.000134,2]
[332894537,1721652639019,-206.6425332,0.000134,2]
[332894538,1721652639030,-378.8959071,0.000134,2]
[332894539,1721652639039,-153.0,0.000134,2]
[332894540,1721652639049,-153.0,0.000134,2]
[332894541,1721652639059,-153.0,0.000134,2]
[332894542,1721652639068,-200.0,0.00013425,2]
[332894543,1721652639078,-153.0,0.00013452,2]
[332894544,1721652639088,-160.0,0.000135,2]
[332894545,1721652639098,-153.0,0.000135,2]
[332894546,1721652639108,-153.0,0.000135,2]
[332894547,1721652639119,-153.0,0.000135,2]
[332894548,1721652639129,-153.0,0.000135,2]
[332894549,1721652639141,-308.9915256,0.000135,2]
[332894550,1721652639152,-1633.59588624,0.00013597,2]
[332894551,1721652639162,-1633.59588623,0.00013597,2]
[332894552,1721652639173,-1633.59588623,0.00013598,2]
[332894553,1721652639184,-1633.59588623,0.00013598,2]
[332894554,1721652639194,-1633.59588623,0.00013598,2]
[332894555,1721652639205,-1170.64798263,0.00013598,2]
[332894556,1721652639215,-150.0,0.000136,2]
[332894557,1721652639229,-154076.22085749,0.00013688,2]
[332894712,1721653838742,-213.49148255,9.999e-05,2]
[332894713,1721653838752,-309.27320796,9.999e-05,2]
[332894714,1721653838763,-283.37630814,9.999e-05,2]
[332894715,1721653838774,-154.74467129,9.999e-05,2]
[332894716,1721653838783,-154.74467129,0.00012119,2]
[332894717,1721653838791,-154.74467129,0.00012119,2]
[332894718,1721653838801,-620.04100398,0.00013029,2]
[332894719,1721653838810,-5304.84073988,0.00013207,2]
[332894720,1721653838819,-367.39222983,0.00013255,2]
[332894721,1721653838828,-200.0,0.00013425,2]
[332894722,1721653838837,-1798.74032734,0.00013576,2]
[332894723,1721653838846,-1053.58318434,0.00013597,2]
[332894724,1721653838856,-3358.59506654,0.00013666,2]
[332894725,1721653838867,-104537.04396646,0.00013666,2]
[332894726,1721653838877,-95297.32192739,0.00013676,2]
[332894727,1721653838887,-107895.639033,0.00013678,2]
[332894728,1721653838896,-620.0020502,0.00013681,2]
[332894729,1721653838906,-260.84241212,0.00013688,2]
[332894730,1721653838915,-154.74467129,0.00013688,2]
[332894731,1721653838925,-19442.92605809,0.00013688,2]
[332894732,1721653838935,-17468.98725828,0.00013688,2]
[332894733,1721653838944,-3781.68915549,0.00013688,2]
[332894734,1721653838953,-2105.24807379,0.00013688,2]
[332894735,1721653838962,-4707.50365433,0.00013688,2]
[332894736,1721653838972,-256.351617,0.00013688,2]
[332894737,1721653838981,-256.351617,0.00013688,2]
[332894738,1721653838990,-151.311299,0.00013688,2]
[332894739,1721653838999,-339.961761,0.00013688,2]
[332894740,1721653839009,-339.961761,0.00013688,2]
[332894741,1721653839018,-151.0,0.00013688,2]
[332894742,1721653839027,-151.0,0.00013688,2]
[332894743,1721653839036,-151.0,0.00013688,2]
[332894744,1721653839046,-151.0,0.00013688,2]
[332894745,1721653839055,-449.700502,0.00013688,2]
[332894746,1721653839064,-449.700502,0.00013688,2]
[332894747,1721653839074,-18906.82861987,0.00013688,2]
[332894765,1721653843886,-9789.40512655,0.00013688,2]
[332894815,1721654182115,197.0,0.00015,10]
[332895091,1721655037800,-346.24214689,9.999e-05,2]
[332895093,1721655037811,-163.97519743,9.999e-05,2]
[332895095,1721655037821,-404.21603118,9.999e-05,2]
[332895097,1721655037832,-154.74467129,0.0001,2]
[332895099,1721655037843,-367.39222983,0.00013334,2]
[332895102,1721655037854,-5304.84073988,0.00013371,2]
[332895104,1721655037864,-200.0,0.00013425,2]
[332895106,1721655037874,-1573.89778644,0.00013597,2]
[332895108,1721655037884,-948.22486587,0.00013598,2]
[332895110,1721655037894,-14065.00573663,0.00013688,2]
[332895146,1721655046078,-73152.36871337,0.00013688,2]
[332895153,1721655156350,1000.0,0.00018,18]
[332895154,1721655176388,1000.0,0.0002,30]
[332895155,1721655202614,1000.0,0.0002,30]
[332895156,1721655238191,1000.0,0.00016,14]
[332895166,1721656036163,-154.72922386,9.999e-05,2]
[332895167,1721656036187,-403.29212142,9.999e-05,2]
[332895168,1721656036212,-209.63850314,9.999e-05,2]
[332895169,1721656036234,-848.46107157,9.999e-05,2]
[332895170,1721656036258,-196.20580808,9.999e-05,2]
[332895171,1721656036282,-141.06561067,9.999e-05,2]
[332895254,1721656241881,-300.0,9.998e-05,2]
[332895256,1721656241891,-300.0,9.998e-05,2]
[332895257,1721656241901,-205.17653622,9.999e-05,2]
[332895258,1721656241910,-392.40605053,9.999e-05,2]
[332895259,1721656241920,-275.41815998,9.999e-05,2]
[332895260,1721656241932,-665.95885695,9.999e-05,2]
[332895261,1721656241941,-260.84241212,9.999e-05,2]
[332895262,1721656241951,-2105.24807379,9.999e-05,2]
[332895263,1721656241960,-209.54913568,9.999e-05,2]
[332895264,1721656241970,-3781.68915549,9.999e-05,2]
[332895265,1721656241983,-162.49582874,9.999e-05,2]
[332895266,1721656241993,-154.72922386,9.999e-05,2]
[332895267,1721656242003,-154.72922386,9.999e-05,2]
[332895268,1721656242013,-19442.92605809,9.999e-05,2]
[332895269,1721656242023,-4707.50365433,9.999e-05,2]
[332895270,1721656242032,-180.15335182,9.999e-05,2]
[332895271,1721656242041,-500.72751431,0.0001,2]
[332895272,1721656242051,-386.04,0.00010959,2]
[332895273,1721656242060,-250.0,0.00011997,2]
[332895274,1721656242069,-403.29212142,0.0001212,2]
[332895275,1721656242078,-73.33722972,0.0001212,2]
[332895276,1721656242090,-81.39199414,0.0001212,2]
[332895277,1721656242099,-185.44243178,0.0001212,2]
[332895278,1721656242108,-1441.8951927,0.000125,2]
[332895279,1721656242117,-195.838852,0.00012583,2]
[332895280,1721656242126,-195.838852,0.00012618,2]
[332895281,1721656242135,-195.838852,0.00012652,2]
[332895282,1721656242144,-195.838852,0.00012687,2]
[332895283,1721656242153,-195.838852,0.00012721,2]
[332895284,1721656242162,-195.838852,0.00012756,2]
[332895285,1721656242171,-195.838852,0.0001279,2]
[332895286,1721656242180,-195.838852,0.00012825,2]
[332895287,1721656242189,-195.838852,0.00012859,2]
[332895288,1721656242199,-195.838852,0.00012894,2]
[332895289,1721656242208,-195.838852,0.00012928,2]
[332895290,1721656242217,-195.838852,0.00012963,2]
[332895291,1721656242226,-195.838852,0.00012997,2]
[332895292,1721656242238,-195.838852,0.00013032,2]
[332895293,1721656242247,-80.25107572,0.00013066,2]
[332895294,1721656242259,-115.58777628,0.00013066,2]
[332895295,1721656242268,-195.838852,0.00013101,2]
[332895296,1721656242280,-195.838852,0.00013135,2]
[332895297,1721656242289,-195.838852,0.0001317,2]
[332895298,1721656242299,-206.6425332,0.00013178,2]
[332895299,1721656242310,-206.6425332,0.00013178,2]
[332895300,1721656242320,-5304.84073988,0.00013184,2]
[332895301,1721656242330,-195.838852,0.00013204,2]
[332895302,1721656242339,-195.838852,0.00013239,2]
[332895303,1721656242350,-151.50895514,0.00013325,2]
[332895304,1721656242364,-367.39222983,0.00013331,2]
[332895305,1721656242373,-200.0,0.00013425,2]
[332895306,1721656242382,-206.6425332,0.000135,2]
[332895307,1721656242393,-206.6425332,0.000135,2]
[332895308,1721656242403,-1526.02079686,0.00013597,2]
[332895309,1721656242413,-917.9904969,0.00013598,2]
[332895310,1721656242423,-206.6425332,0.000136,2]
[332895311,1721656242432,-206.6425332,0.000136,2]
[332895312,1721656242441,-206.6425332,0.000136,2]
[332895313,1721656242452,-206.6425332,0.000136,2]
[332895314,1721656242462,-293.8749366,0.000136,2]
[332895317,1721656242471,-260.4420407,0.000136,2]
[332895318,1721656242483,-655.2254756,0.00013647,2]
[332895319,1721656242493,-150.721,0.00013673,2]